fUSD/lending_fUSD_20240427
["ID","MTS","AMOUNT","RATE_DAILY","PERIOD"]
[323716086,1714187446191,-542.37255454,0.00012679,2]
[323716087,1714187446200,-1511.29,0.00012679,2]
[323716088,1714187446212,-500.0,0.00012679,2]
[323716089,1714187446222,-503.77858406,0.00012679,2]
[323716090,1714187446231,-500.0,0.00012679,2]
[323716091,1714187446240,-505.46430262,0.00012679,2]
[323716092,1714187446250,-504.0446207,0.00012679,2]
[323716093,1714187446260,-500.0,0.00012679,2]
[323716094,1714187446269,-500.0,0.00012679,2]
[323716095,1714187446279,-503.78369594,0.00012679,2]
[323716096,1714187446289,-505.85870735,0.00012679,2]
[323716097,1714187446298,-500.0,0.00012679,2]
[323716098,1714187446308,-957.86,0.00012679,2]
[323716099,1714187446317,-500.0,0.00012679,2]
[323716100,1714187446328,-500.0,0.00012679,2]
[323716102,1714187446336,-500.0,0.00012679,2]
[323716104,1714187446345,-500.0,0.00012679,2]
[323716105,1714187446355,-405.30353154,0.00012679,2]
[323716106,1714187446364,-500.0,0.00012679,2]
[323716107,1714187446374,-240.91984104,0.00012679,2]
[323716108,1714187446385,-500.0,0.00012679,2]
[323716109,1714187446394,-500.0,0.00012679,2]
[323716110,1714187446405,-511.73664969,0.00012679,2]
[323716111,1714187446415,-511.52533246,0.00012679,2]
[323716112,1714187446425,-503.63837421,0.00012679,2]
[323716113,1714187446435,-661.82,0.00012679,2]
[323716114,1714187446445,-510.19248101,0.00012679,2]
[323716115,1714187446454,-500.0,0.00012679,2]
[323716116,1714187446463,-500.0,0.00012679,2]
[323716117,1714187446472,-500.0,0.00012679,2]
[323716118,1714187446481,-504.6729189,0.00012679,2]
[323716119,1714187446489,-500.0,0.00012679,2]
[323716120,1714187446498,-500.0,0.00012679,2]
[323716121,1714187446508,-500.0,0.00012679,2]
[323716122,1714187446517,-500.0,0.00012679,2]
[323716123,1714187446526,-509.27050106,0.00012679,2]
[323716124,1714187446535,-2158.29,0.00012679,2]
[323716125,1714187446544,-500.0,0.00012679,2]
[323716126,1714187446555,-500.0,0.00012679,2]
[323716127,1714187446565,-600.60618077,0.00012679,2]
[323716128,1714187446574,-502.57591397,0.00012679,2]
[323716129,1714187446583,-500.0,0.00012679,2]
[323716130,1714187446593,-503.50864182,0.00012679,2]
[323716131,1714187446602,-500.0,0.00012679,2]
[323716132,1714187446614,-500.0,0.00012679,2]
[323716133,1714187446624,-500.0,0.00012679,2]
[323716134,1714187446635,-213348.58087231,0.0001268,2]
[323716135,1714187446650,-1000.0,0.0001268,2]
[323716136,1714188248463,299.25,9.477e-05,2]
[323716145,1714188632136,-155.0,0.00010074,2]
[323716146,1714188632147,-621.84015726,0.00010075,2]
[323716147,1714188632158,-427.33773077,0.00010076,2]
[323716148,1714188632167,-200.0,0.00010083,2]
[323716149,1714188632181,-155.0,0.000109,2]
[323716150,1714188632190,-3021.4217,0.000109,2]
[323716151,1714188632199,-1250.0,0.00011,2]
[323716152,1714188632208,-200.0,0.00011,2]
[323716153,1714188632218,-658.64,0.00011194,2]
[323716154,1714188632227,-250.0,0.00011194,2]
[323716155,1714188632236,-656.79,0.00011223,2]
[323716156,1714188632249,-248.78,0.00011262,2]
[323716157,1714188632258,-169.02,0.00011272,2]
[323716158,1714188632267,-1178.2,0.00011333,2]
[323716159,1714188632276,-273.48,0.00011355,2]
[323716160,1714188632285,-167.98872195,0.0001141,2]
[323716161,1714188632295,-4464.09300759,0.00011426,2]
[323716162,1714188632307,-1974.8225,0.00011426,2]
[323716163,1714188632318,-1282.44449241,0.00011426,2]
[323716164,1714188632327,-168.86,0.00011551,2]
[323716165,1714188632336,-150.0,0.000116,2]
[323716166,1714188632346,-181.94,0.0001172,2]
[323716167,1714188632355,-299.25,0.00011741,2]
[323716168,1714188632365,-1748.23425053,0.00012,2]
[323716169,1714188632375,-5000.0,0.00012,2]
[323716170,1714188632385,-150.0,0.00012061,2]
[323716171,1714188632396,-162.87,0.00012061,2]
[323716172,1714188632405,-150.0,0.00012061,2]
[323716174,1714188632415,-350.55,0.00012061,2]
[323716175,1714188632425,-543.0,0.00012301,2]
[323716176,1714188632435,-2431.85125706,0.00012578,2]
[323716177,1714188632447,-2183.7396,0.00012578,2]
[323716183,1714188632526,-2998.37360163,0.00012578,2]
[323716256,1714188638192,-8501.00867561,0.000125,2]
[323716262,1714188638244,-1216.41733906,0.000125,2]
[323716268,1714188638353,-64338.55054413,0.000125,2]
[323716269,1714188638458,-46052.61754085,0.000125,2]
[323716270,1714188638469,-10478.04494131,0.00012578,2]
[323716271,1714188638479,-1000.0,0.00012579,2]
[323716272,1714188638489,-7500.0,0.00012579,2]
[323716273,1714188638502,-1669.07014622,0.0001258,2]
[323716274,1714188638512,-744.43341554,0.0001258,2]
[323716275,1714188638522,-309.39237166,0.0001258,2]
[323716276,1714188638533,-658.64,0.00012593,2]
[323716277,1714188638544,-744.43341541,0.00012603,2]
[323716278,1714188638554,-180.77,0.00012603,2]
[323716279,1714188638565,-1669.07014611,0.00012609,2]
[323716282,1714188638575,-744.43341541,0.00012626,2]
[323716283,1714188638585,-1669.07014611,0.00012638,2]
[323716285,1714188638595,-3331.665,0.00012638,2]
[323716287,1714188638606,-744.43341541,0.00012649,2]
[323716288,1714188638617,-175.72397585,0.00012652,2]
[323716290,1714188638627,-1669.07014611,0.00012667,2]
[323716291,1714188638639,-744.43341541,0.00012671,2]
[323716292,1714188638648,-6035.48592242,0.00012676,2]
[323716293,1714188638658,-355.24024923,0.00012676,2]
[323716294,1714188638669,-181.15643786,0.00012677,2]
[323716295,1714188638679,-205.06701735,0.00012678,2]
[323716296,1714188638689,-445.31437047,0.00012678,2]
[323716297,1714188638699,-252.59880162,0.00012678,2]
[323716298,1714188638708,-500.0,0.00012678,2]
[323716299,1714188638717,-500.0,0.00012678,2]
[323716300,1714188638727,-500.0,0.00012678,2]
[323716301,1714188638735,-340.08496703,0.00012678,2]
[323716302,1714188638746,-500.0,0.00012678,2]
[323716303,1714188638755,-500.0,0.00012678,2]
[323716304,1714188638764,-500.0,0.00012678,2]
[323716305,1714188638773,-453.66290683,0.00012678,2]
[323716306,1714188638782,-483.53368875,0.00012678,2]
[323716307,1714188638791,-500.0,0.00012678,2]
[323716308,1714188638800,-564.59085814,0.00012678,2]
[323716309,1714188638810,-500.0,0.00012678,2]
[323716310,1714188638819,-215.06800505,0.00012678,2]
[323716311,1714188638827,-500.0,0.00012678,2]
[323716312,1714188638836,-209.53684703,0.00012678,2]
[323716313,1714188638846,-500.0,0.00012678,2]
[323716314,1714188638855,-505.43875475,0.00012678,2]
[323716315,1714188638864,-500.0,0.00012678,2]
[323716316,1714188638873,-500.0,0.00012678,2]
[323716317,1714188638882,-500.0,0.00012678,2]
[323716318,1714188638891,-500.0,0.00012678,2]
[323716319,1714188638901,-500.0,0.00012678,2]
[323716320,1714188638909,-500.0,0.00012678,2]
[323716321,1714188638919,-500.0,0.00012678,2]
[323716322,1714188638928,-338.20378381,0.00012678,2]
[323716323,1714188638937,-500.0,0.00012678,2]
[323716324,1714188638946,-500.0,0.00012678,2]
[323716325,1714188638955,-500.0,0.00012678,2]
[323716326,1714188638964,-503.84956728,0.00012678,2]
[323716327,1714188638974,-590.90924885,0.00012678,2]
[323716328,1714188638983,-500.0,0.00012678,2]
[323716329,1714188638993,-500.0,0.00012678,2]
[323716330,1714188639002,-500.0,0.00012678,2]
[323716331,1714188639011,-500.0,0.00012678,2]
[323716332,1714188639020,-500.0,0.00012678,2]
[323716333,1714188639029,-500.0,0.00012678,2]
[323716334,1714188639039,-500.0,0.00012678,2]
[323716335,1714188639050,-500.0,0.00012678,2]
[323716336,1714188639059,-500.0,0.00012678,2]
[323716337,1714188639069,-500.0,0.00012678,2]
[323716338,1714188639078,-500.0,0.00012678,2]
[323716339,1714188639087,-500.0,0.00012678,2]
[323716340,1714188639096,-500.0,0.00012678,2]
[323716341,1714188639106,-801.14,0.00012678,2]
[323716342,1714188639116,-462.27757725,0.00012678,2]
[323716343,1714188639125,-500.0,0.00012678,2]
[323716344,1714188639134,-500.0,0.00012678,2]
[323716345,1714188639143,-500.0,0.00012678,2]
[323716346,1714188639152,-500.0,0.00012678,2]
[323716347,1714188639162,-837.89,0.00012678,2]
[323716348,1714188639172,-500.0,0.00012678,2]
[323716349,1714188639185,-212.82243952,0.00012678,2]
[323716350,1714188639194,-500.0,0.00012678,2]
[323716351,1714188639203,-500.0,0.00012678,2]
[323716352,1714188639214,-500.0,0.00012678,2]
[323716353,1714188639225,-150.0,0.00012678,2]
[323716354,1714188639234,-500.0,0.00012678,2]
[323716355,1714188639244,-267.4616347,0.00012678,2]
[323716356,1714188639255,-500.0,0.00012678,2]
[323716357,1714188639265,-500.0,0.00012678,2]
[323716358,1714188639274,-500.0,0.00012678,2]
[323716359,1714188639284,-500.0,0.00012678,2]
[323716360,1714188639293,-500.0,0.00012678,2]
[323716361,1714188639302,-500.0,0.00012678,2]
[323716362,1714188639311,-500.0,0.00012678,2]
[323716363,1714188639321,-500.0,0.00012678,2]
[323716364,1714188639330,-500.0,0.00012678,2]
[323716365,1714188639340,-500.0,0.00012678,2]
[323716366,1714188639349,-500.0,0.00012678,2]
[323716367,1714188639359,-500.0,0.00012678,2]
[323716368,1714188639369,-500.0,0.00012678,2]
[323716369,1714188639379,-500.0,0.00012678,2]
[323716370,1714188639388,-500.0,0.00012678,2]
[323716371,1714188639398,-514.44251055,0.00012678,2]
[323716372,1714188639407,-533.78575191,0.00012678,2]
[323716373,1714188639417,-2164.58,0.00012678,2]
[323716374,1714188639427,-500.0,0.00012678,2]
[323716375,1714188639436,-500.0,0.00012678,2]
[323716376,1714188639446,-500.0,0.00012678,2]
[323716377,1714188639455,-500.0,0.00012678,2]
[323716378,1714188639465,-500.0,0.00012678,2]
[323716379,1714188639475,-500.0,0.00012678,2]
[323716380,1714188639484,-500.0,0.00012678,2]
[323716381,1714188639494,-500.0,0.00012678,2]
[323716382,1714188639503,-500.0,0.00012678,2]
[323716383,1714188639513,-565.23334801,0.00012678,2]
[323716384,1714188639522,-500.0,0.00012678,2]
[323716385,1714188639531,-500.0,0.00012678,2]
[323716386,1714188639540,-500.0,0.00012678,2]
[323716387,1714188639549,-500.0,0.00012678,2]
[323716388,1714188639559,-500.0,0.00012678,2]
[323716389,1714188639569,-500.0,0.00012678,2]
[323716390,1714188639578,-500.0,0.00012678,2]
[323716391,1714188639589,-500.0,0.00012678,2]
[323716392,1714188639598,-238.66,0.00012678,2]
[323716393,1714188639607,-500.0,0.00012678,2]
[323716394,1714188639616,-519.73968269,0.00012678,2]
[323716395,1714188639625,-500.0,0.00012678,2]
[323716396,1714188639635,-500.0,0.00012678,2]
[323716397,1714188639644,-500.0,0.00012678,2]
[323716398,1714188639653,-500.0,0.00012678,2]
[323716399,1714188639662,-500.0,0.00012678,2]
[323716400,1714188639672,-4444.36,0.00012678,2]
[323716401,1714188639681,-2254.72,0.00012678,2]
[323716402,1714188639691,-500.0,0.00012678,2]
[323716403,1714188639700,-500.0,0.00012678,2]
[323716404,1714188639710,-4631.39,0.00012678,2]
[323716405,1714188639719,-500.0,0.00012678,2]
[323716406,1714188639728,-500.0,0.00012678,2]
[323716407,1714188639738,-600.09,0.00012678,2]
[323716408,1714188639748,-500.0,0.00012678,2]
[323716409,1714188639757,-500.0,0.00012678,2]
[323716410,1714188639766,-500.0,0.00012678,2]
[323716411,1714188639776,-500.0,0.00012678,2]
[323716412,1714188639785,-500.0,0.00012678,2]
[323716413,1714188639794,-500.0,0.00012678,2]
[323716414,1714188639804,-500.0,0.00012678,2]
[323716415,1714188639814,-500.0,0.00012678,2]
[323716416,1714188639824,-500.0,0.00012678,2]
[323716417,1714188639833,-1720.62,0.00012678,2]
[323716418,1714188639842,-775.83,0.00012678,2]
[323716419,1714188639852,-463.8683086,0.00012678,2]
[323716420,1714188639861,-500.0,0.00012678,2]
[323716421,1714188639870,-500.0,0.00012678,2]
[323716422,1714188639880,-954.21,0.00012678,2]
[323716423,1714188639890,-500.0,0.00012678,2]
[323716424,1714188639898,-254.39655378,0.00012678,2]
[323716425,1714188639908,-500.0,0.00012678,2]
[323716426,1714188639917,-1770.01,0.00012678,2]
[323716427,1714188639926,-500.0,0.00012678,2]
[323716428,1714188639935,-187.25078235,0.00012678,2]
[323716429,1714188639945,-500.0,0.00012678,2]
[323716430,1714188639955,-500.0,0.00012678,2]
[323716431,1714188639965,-500.0,0.00012678,2]
[323716432,1714188639974,-500.0,0.00012678,2]
[323716433,1714188639983,-500.0,0.00012678,2]
[323716434,1714188639993,-500.0,0.00012678,2]
[323716435,1714188640002,-509.11674349,0.00012678,2]
[323716436,1714188640011,-500.0,0.00012678,2]
[323716437,1714188640021,-1073.46,0.00012678,2]
[323716438,1714188640032,-500.0,0.00012678,2]
[323716439,1714188640042,-500.0,0.00012678,2]
[323716440,1714188640052,-500.0,0.00012678,2]
[323716441,1714188640061,-500.0,0.00012678,2]
[323716442,1714188640070,-508.92781481,0.00012678,2]
[323716443,1714188640079,-853.24,0.00012678,2]
[323716444,1714188640088,-345.33034063,0.00012678,2]
[323716445,1714188640098,-500.0,0.00012678,2]
[323716446,1714188640107,-500.0,0.00012678,2]
[323716447,1714188640116,-519.17903053,0.00012678,2]
[323716448,1714188640125,-717.55,0.00012678,2]
[323716449,1714188640134,-500.0,0.00012678,2]
[323716450,1714188640143,-500.0,0.00012678,2]
[323716451,1714188640152,-500.0,0.00012678,2]
[323716452,1714188640161,-500.0,0.00012678,2]
[323716453,1714188640171,-500.0,0.00012678,2]
[323716454,1714188640184,-500.0,0.00012678,2]
[323716455,1714188640193,-500.0,0.00012678,2]
[323716456,1714188640203,-500.0,0.00012678,2]
[323716457,1714188640213,-500.0,0.00012678,2]
[323716458,1714188640222,-500.0,0.00012678,2]
[323716459,1714188640232,-500.0,0.00012678,2]
[323716460,1714188640241,-500.0,0.00012678,2]
[323716461,1714188640253,-500.0,0.00012678,2]
[323716462,1714188640263,-500.0,0.00012678,2]
[323716463,1714188640273,-500.0,0.00012678,2]
[323716464,1714188640283,-500.0,0.00012678,2]
[323716465,1714188640292,-500.0,0.00012678,2]
[323716466,1714188640302,-500.0,0.00012678,2]
[323716467,1714188640311,-503.18319624,0.00012678,2]
[323716468,1714188640321,-500.0,0.00012678,2]
[323716469,1714188640330,-746.44,0.00012678,2]
[323716470,1714188640339,-501.14,0.00012678,2]
[323716471,1714188640348,-550.95,0.00012678,2]
[323716472,1714188640358,-504.00336468,0.00012678,2]
[323716473,1714188640367,-500.0,0.00012678,2]
[323716474,1714188640377,-500.0,0.00012678,2]
[323716475,1714188640386,-500.0,0.00012678,2]
[323716476,1714188640395,-500.0,0.00012678,2]
[323716477,1714188640404,-500.0,0.00012678,2]
[323716478,1714188640413,-500.0,0.00012678,2]
[323716479,1714188640423,-500.0,0.00012678,2]
[323716480,1714188640432,-514.52781539,0.00012678,2]
[323716481,1714188640442,-500.0,0.00012678,2]
[323716482,1714188640451,-500.0,0.00012678,2]
[323716483,1714188640460,-500.0,0.00012678,2]
[323716484,1714188640469,-540.96150149,0.00012678,2]
[323716485,1714188640478,-508.53477273,0.00012678,2]
[323716486,1714188640487,-500.0,0.00012678,2]
[323716487,1714188640499,-829.78,0.00012678,2]
[323716488,1714188640508,-495.71144207,0.00012678,2]
[323716489,1714188640518,-575.78352479,0.00012678,2]
[323716490,1714188640529,-1176.4,0.00012678,2]
[323716491,1714188640538,-500.0,0.00012678,2]
[323716492,1714188640547,-500.0,0.00012678,2]
[323716493,1714188640557,-193.39401008,0.00012678,2]
[323716494,1714188640568,-509.39999174,0.00012678,2]
[323716495,1714188640577,-500.0,0.00012678,2]
[323716496,1714188640587,-500.0,0.00012678,2]
[323716497,1714188640597,-500.0,0.00012678,2]
[323716498,1714188640607,-500.0,0.00012678,2]
[323716499,1714188640617,-500.0,0.00012678,2]
[323716500,1714188640627,-500.0,0.00012678,2]
[323716501,1714188640636,-1407.45,0.00012678,2]
[323716502,1714188640646,-1400.27,0.00012678,2]
[323716503,1714188640656,-500.0,0.00012678,2]
[323716504,1714188640665,-500.0,0.00012678,2]
[323716505,1714188640675,-1166.25,0.00012678,2]
[323716506,1714188640684,-500.0,0.00012678,2]
[323716507,1714188640693,-500.0,0.00012678,2]
[323716508,1714188640702,-563.53,0.00012678,2]
[323716509,1714188640711,-1133.36,0.00012678,2]
[323716510,1714188640720,-500.0,0.00012678,2]
[323716511,1714188640730,-2553.08,0.00012678,2]
[323716512,1714188640739,-500.0,0.00012678,2]
[323716513,1714188640751,-957.78,0.00012678,2]
[323716514,1714188640761,-500.0,0.00012678,2]
[323716515,1714188640770,-500.0,0.00012678,2]
[323716516,1714188640780,-500.0,0.00012678,2]
[323716517,1714188640789,-1093.31,0.00012678,2]
[323716518,1714188640798,-500.0,0.00012678,2]
[323716519,1714188640807,-819.48,0.00012678,2]
[323716520,1714188640816,-500.0,0.00012678,2]
[323716521,1714188640826,-500.0,0.00012678,2]
[323716522,1714188640835,-500.0,0.00012678,2]
[323716523,1714188640844,-552.77410438,0.00012678,2]
[323716524,1714188640854,-500.0,0.00012678,2]
[323716525,1714188640863,-500.0,0.00012678,2]
[323716526,1714188640872,-1178.57,0.00012678,2]
[323716527,1714188640881,-500.0,0.00012678,2]
[323716528,1714188640891,-522.67981214,0.00012678,2]
[323716529,1714188640902,-500.0,0.00012678,2]
[323716530,1714188640911,-500.0,0.00012678,2]
[323716531,1714188640920,-500.0,0.00012678,2]
[323716532,1714188640929,-500.0,0.00012678,2]
[323716533,1714188640938,-500.0,0.00012678,2]
[323716534,1714188640948,-500.0,0.00012678,2]
[323716535,1714188640958,-1583.93,0.00012678,2]
[323716536,1714188640967,-204.80081361,0.00012678,2]
[323716537,1714188640976,-500.0,0.00012678,2]
[323716538,1714188640985,-500.0,0.00012678,2]
[323716539,1714188640994,-634.24,0.00012678,2]
[323716540,1714188641003,-500.0,0.00012678,2]
[323716541,1714188641013,-507.49381255,0.00012678,2]
[323716542,1714188641022,-507.59,0.00012678,2]
[323716543,1714188641031,-508.07852421,0.00012678,2]
[323716544,1714188641040,-500.0,0.00012678,2]
[323716545,1714188641049,-505.84660403,0.00012678,2]
[323716546,1714188641058,-500.0,0.00012678,2]
[323716547,1714188641068,-500.0,0.00012678,2]
[323716548,1714188641077,-500.0,0.00012678,2]
[323716549,1714188641086,-500.0,0.00012678,2]
[323716550,1714188641096,-500.0,0.00012678,2]
[323716551,1714188641105,-511.90279999,0.00012678,2]
[323716552,1714188641114,-500.0,0.00012678,2]
[323716553,1714188641124,-277.84534466,0.00012679,2]
[323716554,1714188641133,-459.23425146,0.00012679,2]
[323716555,1714188641142,-500.0,0.00012679,2]
[323716556,1714188641151,-502.3488869,0.00012679,2]
[323716557,1714188641160,-505.32400555,0.00012679,2]
[323716558,1714188641169,-502.45739212,0.00012679,2]
[323716559,1714188641182,-500.0,0.00012679,2]
[323716560,1714188641190,-503.55149829,0.00012679,2]
[323716561,1714188641199,-501.83294634,0.00012679,2]
[323716562,1714188641208,-504.0259668,0.00012679,2]
[323716563,1714188641217,-390.58648443,0.00012679,2]
[323716564,1714188641226,-501.77908982,0.00012679,2]
[323716565,1714188641235,-504.03104909,0.00012679,2]
[323716566,1714188641245,-503.27714261,0.00012679,2]
[323716567,1714188641255,-501.83704293,0.00012679,2]
[323716568,1714188641265,-498.08063201,0.00012679,2]
[323716569,1714188641274,-497.53063838,0.00012679,2]
[323716570,1714188641283,-501.94094152,0.00012679,2]
[323716571,1714188641292,-603.60938006,0.00012679,2]
[323716572,1714188641301,-500.0,0.00012679,2]
[323716573,1714188641311,-504.28600211,0.00012679,2]
[323716574,1714188641320,-503.17886195,0.00012679,2]
[323716575,1714188641329,-606.83391664,0.00012679,2]
[323716576,1714188641338,-501.50842918,0.00012679,2]
[323716577,1714188641349,-500.67576583,0.00012679,2]
[323716578,1714188641358,-185.54071473,0.00012679,2]
[323716579,1714188641367,-501.4111339,0.00012679,2]
[323716580,1714188641377,-333.39594851,0.00012679,2]
[323716581,1714188641386,-502.558277,0.00012679,2]
[323716582,1714188641395,-152.52186435,0.00012679,2]
[323716583,1714188641404,-500.0,0.00012679,2]
[323716584,1714188641413,-505.68025961,0.00012679,2]
[323716585,1714188641423,-305.16648702,0.00012679,2]
[323716586,1714188641432,-504.28887484,0.00012679,2]
[323716587,1714188641441,-500.0,0.00012679,2]
[323716588,1714188641450,-505.71352985,0.00012679,2]
[323716589,1714188641459,-500.0,0.00012679,2]
[323716590,1714188641468,-502.70396954,0.00012679,2]
[323716591,1714188641478,-508.85442529,0.00012679,2]
[323716592,1714188641487,-507.40269941,0.00012679,2]
[323716593,1714188641497,-507.11218332,0.00012679,2]
[323716594,1714188641506,-502.31879664,0.00012679,2]
[323716595,1714188641515,-272.74695328,0.00012679,2]
[323716596,1714188641525,-500.0,0.00012679,2]
[323716597,1714188641534,-502.77871075,0.00012679,2]
[323716598,1714188641543,-502.07674848,0.00012679,2]
[323716599,1714188641552,-500.0,0.00012679,2]
[323716600,1714188641560,-501.76336093,0.00012679,2]
[323716601,1714188641569,-380.48760572,0.00012679,2]
[323716602,1714188641578,-501.6038258,0.00012679,2]
[323716603,1714188641588,-500.0,0.00012679,2]
[323716604,1714188641598,-596.47462195,0.00012679,2]
[323716605,1714188641606,-511.76948564,0.00012679,2]
[323716606,1714188641616,-505.06177143,0.00012679,2]
[323716607,1714188641625,-500.0,0.00012679,2]
[323716608,1714188641634,-511.56029004,0.00012679,2]
[323716609,1714188641642,-517.65833032,0.00012679,2]
[323716610,1714188641651,-513.55880252,0.00012679,2]
[323716611,1714188641660,-501.39148041,0.00012679,2]
[323716612,1714188641669,-500.0,0.00012679,2]
[323716613,1714188641679,-500.0,0.00012679,2]
[323716614,1714188641688,-407.26309244,0.00012679,2]
[323716615,1714188641697,-505.5523982,0.00012679,2]
[323716616,1714188641707,-505.46898184,0.00012679,2]
[323716617,1714188641716,-431.49167114,0.00012679,2]
[323716618,1714188641725,-500.0,0.00012679,2]
[323716619,1714188641734,-629.88522196,0.00012679,2]
[323716621,1714188641743,-500.0,0.00012679,2]
[323716623,1714188641756,-332.61744791,0.00012679,2]
[323716624,1714188641765,-500.0,0.00012679,2]
[323716626,1714188641774,-500.0,0.00012679,2]
[323716627,1714188641783,-500.0,0.00012679,2]
[323716628,1714188641793,-502.04379388,0.00012679,2]
[323716629,1714188641802,-500.0,0.00012679,2]
[323716630,1714188641811,-556.4902197,0.00012679,2]
[323716631,1714188641820,-502.31456926,0.00012679,2]
[323716632,1714188641830,-500.0,0.00012679,2]
[323716633,1714188641839,-1110.63,0.00012679,2]
[323716634,1714188641848,-500.0,0.00012679,2]
[323716635,1714188641856,-302.31728271,0.00012679,2]
[323716636,1714188641865,-500.0,0.00012679,2]
[323716637,1714188641874,-500.0,0.00012679,2]
[323716638,1714188641883,-501.43397116,0.00012679,2]
[323716639,1714188641893,-502.19515128,0.00012679,2]
[323716640,1714188641902,-500.0,0.00012679,2]
[323716641,1714188641912,-500.0,0.00012679,2]
[323716642,1714188641921,-500.0,0.00012679,2]
[323716643,1714188641930,-501.04463235,0.00012679,2]
[323716644,1714188641939,-500.0,0.00012679,2]
[323716645,1714188641947,-500.29815755,0.00012679,2]
[323716646,1714188641956,-502.63322545,0.00012679,2]
[323716647,1714188641965,-500.0,0.00012679,2]
[323716648,1714188641974,-500.61884466,0.00012679,2]
[323716649,1714188641983,-500.0,0.00012679,2]
[323716650,1714188641992,-500.0,0.00012679,2]
[323716651,1714188642004,-500.80463077,0.00012679,2]
[323716652,1714188642013,-502.4192097,0.00012679,2]
[323716653,1714188642022,-502.86131429,0.00012679,2]
[323716654,1714188642030,-500.89330825,0.00012679,2]
[323716655,1714188642039,-500.0,0.00012679,2]
[323716656,1714188642048,-500.0,0.00012679,2]
[323716657,1714188642057,-500.0,0.00012679,2]
[323716658,1714188642067,-501.74742311,0.00012679,2]
[323716659,1714188642076,-500.0,0.00012679,2]
[323716660,1714188642085,-500.0,0.00012679,2]
[323716661,1714188642094,-503.13959181,0.00012679,2]
[323716662,1714188642104,-601.94166827,0.00012679,2]
[323716663,1714188642291,-501.52071261,0.00012679,2]
[323716664,1714188642301,-500.0,0.00012679,2]
[323716665,1714188642311,-500.0,0.00012679,2]
[323716666,1714188642321,-509.3731658,0.00012679,2]
[323716667,1714188642331,-460.84043385,0.00012679,2]
[323716668,1714188642340,-641.74577681,0.00012679,2]
[323716669,1714188642349,-500.0,0.00012679,2]
[323716670,1714188642359,-500.46265288,0.00012679,2]
[323716671,1714188642368,-500.45231644,0.00012679,2]
[323716672,1714188642378,-501.94275745,0.00012679,2]
[323716673,1714188642387,-500.0,0.00012679,2]
[323716674,1714188642397,-500.0,0.00012679,2]
[323716675,1714188642406,-500.0,0.00012679,2]
[323716676,1714188642416,-500.0,0.00012679,2]
[323716677,1714188642426,-500.0,0.00012679,2]
[323716678,1714188642435,-500.0,0.00012679,2]
[323716679,1714188642445,-580.86860373,0.00012679,2]
[323716680,1714188642454,-500.0,0.00012679,2]
[323716681,1714188642463,-500.0,0.00012679,2]
[323716682,1714188642473,-500.0,0.00012679,2]
[323716683,1714188642482,-500.0,0.00012679,2]
[323716684,1714188642491,-500.0,0.00012679,2]
[323716685,1714188642503,-500.0,0.00012679,2]
[323716686,1714188642512,-500.0,0.00012679,2]
[323716687,1714188642524,-500.0,0.00012679,2]
[323716688,1714188642534,-428.92677666,0.00012679,2]
[323716689,1714188642544,-899.35,0.00012679,2]
[323716690,1714188642554,-500.0,0.00012679,2]
[323716691,1714188642563,-500.0,0.00012679,2]